bitfinex/quotes_SOLUSD_20260203
["timestamp","ask_amount","ask_price","bid_price","bid_amount"]
[1770122970632,3.99311698,103.34,103.31,10.90697932]
[1770122970934,2.88243795,103.32,103.31,10.90697932]
[1770122971140,1.11067903,103.34,103.31,10.90697932]
[1770122971434,2.88243795,103.32,103.31,10.90697932]
[1770122971634,1.11067903,103.34,103.31,10.90697932]
[1770122971935,2.88243795,103.32,103.31,10.90697932]
[1770122972113,1.11067903,103.34,103.31,10.90697932]
[1770122972441,2.88243795,103.32,103.29,26.9]
[1770122972739,2.88243795,103.3,103.26,103.0]
[1770122972921,1.11067903,103.31,103.25,4.27527085]
[1770122973122,1.11067903,103.31,103.23,135.26086188]
[1770122973316,1.11067903,103.3,103.26,9.68429207]
[1770122973734,2.88243795,103.28,103.26,9.68429207]
[1770122973931,2.88243795,103.29,103.26,9.68429207]
[1770122974232,2.88243795,103.3,103.28,10.19606287]
[1770122976820,2.88243795,103.31,103.28,10.19606287]
[1770122977044,3.99311698,103.32,103.29,0.50103785]
[1770122977347,2.88243795,103.32,103.29,0.50103785]
[1770122977543,3.99311698,103.33,103.29,0.50103785]
[1770122979139,3.99311698,103.33,103.3,9.68054211]
[1770122979636,1.11067903,103.33,103.31,2.88243795]
[1770122982241,1.11067903,103.33,103.31,12.5618104]
[1770122982539,1.11067903,103.34,103.31,13.05267484]
[1770122982743,1.11067903,103.34,103.32,2.88243795]
[1770122983249,1.11067903,103.34,103.31,9.67937245]
[1770122983437,1.11067903,103.33,103.31,12.5618104]
[1770122986241,1.11067903,103.34,103.31,12.5618104]
[1770122986444,1.11067903,103.34,103.31,13.04494879]
[1770122989044,9.67593899,103.35,103.32,13.03864552]
[1770122989045,1.11067903,103.35,103.32,13.03864552]
[1770122990242,1.11067903,103.35,103.32,12.56107183]
[1770122992031,1.11067903,103.35,103.32,13.03151966]
[1770122992432,1.11067903,103.35,103.33,2.88243795]
[1770122995145,1.11067903,103.35,103.32,13.03151966]
[1770122997247,1.11067903,103.35,103.32,10.14908171]
[1770122997549,1.11067903,103.35,103.32,13.03151966]
[1770123001963,1.11067903,103.35,103.32,37.22819019]
[1770123003457,2.88243795,103.35,103.29,0.45094353]
[1770123003634,1.19510742,103.33,103.3,9.68005039]
[1770123003842,1.19510742,103.31,103.28,3.33338148]
[1770123004049,1.19510742,103.31,103.28,13.01517544]
[1770123004355,1.19510742,103.31,103.28,9.68179396]
[1770123004559,4.07754537,103.31,103.28,9.68179396]
[1770123004734,4.07754537,103.31,103.25,0.44943695]
[1770123004735,1.19510742,103.28,103.25,0.44943695]
[1770123005057,1.19510742,103.29,103.27,9.68335431]
[1770123006142,1.19510742,103.28,103.26,9.6837531]
[1770123007361,1.19510742,103.29,103.26,0.44502025]
[1770123007739,1.19510742,103.29,103.25,34.34315023]
[1770123008559,10.87663125,103.29,103.25,34.34315023]
[1770123008744,1.19510742,103.28,103.25,10.13025027]
[1770123011665,1.19510742,103.29,103.26,0.43936445]
[1770123013158,1.19510742,103.29,103.26,10.12275988]
[1770123013663,1.19510742,103.29,103.26,9.68339543]
[1770123013841,1.19510742,103.28,103.25,10.1214123]
[1770123014566,1.19510742,103.28,103.26,9.68427483]
[1770123015764,1.19510742,103.3,103.27,0.43396406]
[1770123016066,1.19510742,103.31,103.28,0.4326525]
[1770123016267,1.19510742,103.31,103.27,3.31842212]
[1770123016444,1.19510742,103.31,103.28,3.31842212]
[1770123016846,1.19510742,103.31,103.28,0.4326525]
[1770123017065,1.19510742,103.3,103.26,37.21213065]
[1770123017565,1.19510742,103.3,103.27,0.43135601]
[1770123018464,1.19510742,103.3,103.28,9.68241673]
[1770123026879,1.11158434,103.31,103.27,10.1013951]
[1770123027079,1.11158434,103.31,103.27,12.98716472]
[1770123029573,1.11158434,103.31,103.27,12.56912393]
[1770123029780,1.11158434,103.31,103.28,0.41579643]
[1770123029978,1.11158434,103.31,103.27,12.98381748]
[1770123030279,1.11158434,103.31,103.27,10.09804786]
[1770123031579,1.11158434,103.31,103.27,34.30643364]
[1770123033287,1.11158434,103.31,103.27,33.89174009]
[1770123033482,1.11158434,103.31,103.27,34.30320042]
[1770123036286,1.11158434,103.3,103.27,34.30320042]
[1770123036485,1.11158434,103.3,103.27,10.09481464]
[1770123037286,1.11158434,103.29,103.27,9.68335431]
[1770123037784,1.11158434,103.29,103.27,10.08966883]
[1770123038089,1.11158434,103.3,103.27,10.08966883]
[1770123038673,1.11158434,103.31,103.28,0.40631452]
[1770123040397,1.11158434,103.31,103.29,9.68147933]
[1770123043090,1.11158434,103.3,103.28,9.68218564]
[1770123045596,1.11158434,103.3,103.28,10.08177757]
[1770123045798,1.11158434,103.3,103.28,9.68218564]
[1770123048285,1.11158434,103.31,103.28,10.07905877]
[1770123050080,1.11158434,103.31,103.28,9.68218564]
[1770123051082,1.11158434,103.31,103.28,10.07557722]
[1770123051279,1.11158434,103.31,103.28,34.28161904]
[1770123051800,1.11158434,103.31,103.28,10.07557722]
[1770123053281,1.11158434,103.31,103.28,34.28161904]
[1770123055431,1.11158434,103.31,103.28,9.68218564]
[1770123055798,3.99735396,103.31,103.28,9.68218564]
[1770123056006,1.08697889,103.29,103.27,9.68288499]
[1770123057324,1.08697889,103.29,103.27,10.07055788]
[1770123057536,1.08697889,103.29,103.27,9.68288499]
[1770123060829,1.08697889,103.29,103.26,10.07144441]
[1770123061729,1.08697889,103.28,103.26,9.68377152]
[1770123061934,1.08697889,103.27,103.25,9.68482639]
[1770123062934,1.08697889,103.27,103.24,10.06929424]
[1770123063119,1.08697889,103.27,103.24,34.28471461]
[1770123063819,3.97274851,103.27,103.24,34.28471461]
[1770123064435,9.68169171,103.29,103.25,0.38239846]
[1770123064636,1.08697889,103.28,103.25,0.38239846]
[1770123064835,1.08697889,103.27,103.25,0.38239846]
[1770123065642,3.97274851,103.28,103.25,10.06726618]
[1770123065935,1.08697889,103.27,103.25,9.68486772]
[1770123066140,3.97274851,103.27,103.25,9.68486772]
[1770123066322,9.68157108,103.29,103.24,24.59709955]
[1770123066323,3.97274851,103.26,103.24,9.68586581]
[1770123066938,1.08697889,103.26,103.24,9.68586581]
[1770123068219,1.08697889,103.26,103.24,10.06543637]
[1770123069236,1.08697889,103.26,103.24,9.68586581]
[1770123071238,1.08697889,103.26,103.23,34.28277726]
[1770123072226,1.08697889,103.26,103.24,0.37687036]
[1770123072634,1.08697889,103.27,103.24,0.37687036]
[1770123073223,1.08697889,103.32,103.27,0.37621458]
[1770123073416,1.08697889,103.32,103.28,3.2619842]
[1770123073633,1.08697889,103.32,103.26,0.37621458]
[1770123073956,1.08697889,103.28,103.25,34.27451966]
[1770123081254,3.97281706,103.28,103.25,34.27451966]
[1770123081939,1.0655296,103.27,103.25,33.89830508]
[1770123089948,1.0655296,103.27,103.25,0.3656185]
[1770123093447,1.0655296,103.27,103.25,10.05076932]
[1770123093644,1.0655296,103.26,103.24,9.68612257]
[1770123093956,3.95136777,103.26,103.24,9.68612257]
[1770123095657,1.0655296,103.26,103.24,9.68612257]
[1770123096650,1.0655296,103.26,103.24,10.04867118]
[1770123096957,1.0655296,103.26,103.24,9.68612257]
[1770123104049,2.88583817,103.27,103.24,9.68612257]
[1770123104050,1.0655296,103.27,103.24,10.04489538]
[1770123105056,3.95136777,103.28,103.25,0.3583249]
[1770123105362,1.0655296,103.28,103.25,0.3583249]
[1770123106342,10.74645291,103.3,103.27,0.35788213]
[1770123106541,1.0655296,103.29,103.27,0.35788213]
[1770123106769,1.0655296,103.29,103.26,9.68429207]
[1770123107067,1.0655296,103.29,103.26,10.04173653]
[1770123109565,1.0655296,103.28,103.25,10.04132756]
[1770123109757,1.0655296,103.28,103.26,9.6842277]
[1770123110161,1.0655296,103.27,103.26,9.6842277]
[1770123110364,1.0655296,103.27,103.25,9.68523002]
[1770123110871,1.0655296,103.27,103.25,10.04097346]
[1770123112973,1.0655296,103.27,103.25,9.68523002]
[1770123116169,1.0655296,103.27,103.25,10.03817942]
[1770123116774,1.0655296,103.27,103.25,9.68523002]
[1770123118170,1.13578263,103.26,103.24,9.68599288]
[1770123118473,4.0216208,103.26,103.24,9.68599288]
[1770123119672,1.13578263,103.26,103.24,9.68599288]
[1770123121392,2.88583817,103.27,103.21,11.24869924]
[1770123121393,0.80128477,103.24,103.21,2.71284383]
[1770123121564,2.88583817,103.25,103.2,32.52382669]
[1770123121565,2.88583817,103.22,103.2,32.52382669]
[1770123121883,2.88583817,103.21,103.2,32.52382669]
[1770123123693,12.57482179,103.21,103.18,0.2]
[1770123123987,2.88583817,103.19,103.17,0.2]
[1770123124354,2.88583817,103.18,103.17,0.2]
[1770123124894,2.88583817,103.21,103.18,1.15291803]
[1770123125059,12.57430771,103.22,103.18,1.15291803]
[1770123125380,12.57430771,103.22,103.18,10.84435963]
[1770123125566,12.57430771,103.22,103.19,1.15291803]
[1770123125876,2.88583817,103.23,103.19,1.15291803]
[1770123126478,2.88583817,103.24,103.2,1.15291803]
[1770123127482,4.0216208,103.24,103.18,27.11534001]
[1770123127871,2.88583817,103.23,103.18,27.11534001]
[1770123128081,4.0216208,103.24,103.19,2.88583817]
[1770123129369,4.0216208,103.24,103.2,1.07488949]
[1770123129569,4.0216208,103.24,103.2,10.76481197]
[1770123130167,4.0216208,103.24,103.21,1.07488949]
[1770123131192,9.68523002,103.25,103.21,1.07488949]
[1770123131193,13.70683486,103.25,103.21,1.07488949]
[1770123131489,1.13576667,103.25,103.22,1.07488949]
[1770123132474,1.13279314,103.24,103.22,1.07488949]
[1770123132693,13.70401933,103.25,103.22,1.07488949]
[1770123133285,13.70401933,103.25,103.22,10.7629273]
[1770123133473,4.01863131,103.25,103.22,10.7629273]
[1770123134394,4.02097533,103.25,103.22,10.7629273]
[1770123134982,13.70634719,103.25,103.22,1.07488949]
[1770123135188,1.13578263,103.24,103.21,10.76342287]
[1770123136195,1.13578263,103.24,103.22,10.76291275]
[1770123136991,4.02396482,103.25,103.22,10.76291275]
[1770123141484,4.02396482,103.25,103.23,1.16929551]
[1770123141795,1.09205484,103.27,103.23,1.16929551]
[1770123142172,3.98023703,103.27,103.23,1.16929551]
[1770123144099,3.98023703,103.27,103.24,10.85546366]
[1770123144389,13.66312603,103.28,103.25,1.16929551]
[1770123144595,3.98023703,103.28,103.25,1.16929551]
[1770123145997,3.98023703,103.29,103.25,1.16929551]
[1770123146293,3.98023703,103.29,103.26,10.85358758]
[1770123146971,1.09205484,103.29,103.27,1.16929551]
[1770123147171,12.56925937,103.3,103.27,1.16929551]
[1770123147172,1.09205484,103.3,103.27,1.16929551]
[1770123147375,3.98023703,103.3,103.27,1.16929551]
[1770123147798,1.09205484,103.29,103.27,1.16929551]
[1770123148187,3.98023703,103.3,103.27,10.85244762]
[1770123150103,1.09205484,103.3,103.27,10.85244762]
[1770123150280,3.98023703,103.3,103.27,10.85244762]
[1770123151407,2.88818219,103.29,103.27,10.85244762]
[1770123152202,3.98023703,103.3,103.27,10.85244762]
[1770123153108,2.88818219,103.29,103.27,10.85244762]
[1770123153405,3.98023703,103.29,103.27,1.16929551]
[1770123153703,3.98023703,103.29,103.26,10.85312176]
[1770123154203,1.09205484,103.29,103.27,10.85261415]
[1770123154383,3.98023703,103.29,103.27,10.85261415]
[1770123155405,2.88818219,103.29,103.27,10.85255623]
[1770123158908,3.98023703,103.3,103.27,10.85255623]
[1770123159509,1.09205484,103.3,103.27,10.85255623]
[1770123159709,3.98023703,103.3,103.27,10.85255623]
[1770123161308,2.88818219,103.3,103.28,1.16929551]
[1770123161516,13.66041385,103.31,103.28,1.16929551]
[1770123161991,13.66041385,103.31,103.27,1.16929551]
[1770123161992,1.09205484,103.3,103.27,1.16929551]
[1770123162507,1.09205484,103.3,103.28,1.16929551]
[1770123162713,1.09205484,103.3,103.27,10.85239806]
[1770123163209,3.98023703,103.3,103.28,1.16929551]
[1770123163618,10.7692167,103.34,103.28,2.88818219]
[1770123163793,3.98023703,103.33,103.29,1.16929551]
[1770123164489,2.88818219,103.31,103.29,10.85074958]
[1770123165291,3.98023703,103.32,103.29,10.85074958]
[1770123168721,10.76936143,103.34,103.3,1.16929551]
[1770123169023,3.98023703,103.33,103.3,1.16929551]
[1770123170315,3.98023703,103.33,103.3,10.84948685]
[1770123171114,4.14178798,103.34,103.31,1.19398518]
[1770123171422,9.31731408,103.37,103.31,1.19398518]
[1770123171423,1.25360579,103.36,103.31,1.19398518]
[1770123171722,2.88818219,103.36,103.32,1.19398518]
[1770123172012,4.14178798,103.35,103.32,1.19398518]
[1770123172400,4.14178798,103.35,103.32,10.87256524]
[1770123173716,4.19803844,103.34,103.31,10.93882701]
[1770123174114,4.19803844,103.34,103.32,1.25967975]
[1770123174411,1.30985625,103.32,103.28,25.46435181]
[1770123174717,4.19803844,103.3,103.27,10.94249111]
[1770123175012,2.88818219,103.29,103.27,9.68281136]
[1770123175407,2.88818219,103.3,103.27,9.68281136]
[1770123175600,2.88818219,103.31,103.28,9.68227059]
[1770123175796,10.98854147,103.32,103.28,9.68227059]
[1770123175997,10.98854147,103.32,103.28,33.88831241]
[1770123175998,4.19803844,103.32,103.28,33.88831241]
[1770123179424,4.19803844,103.31,103.28,9.68227059]
[1770123179719,2.88818219,103.3,103.28,9.68227059]
[1770123179922,2.88818219,103.31,103.29,1.25967975]
[1770123180412,4.19803844,103.32,103.29,1.25967975]
[1770123181006,2.88818219,103.31,103.29,1.25967975]
[1770123181205,10.98863224,103.32,103.29,1.25967975]
[1770123181508,4.19803844,103.3,103.27,1.25967975]
[1770123181819,2.88818219,103.29,103.27,1.25967975]
[1770123182320,2.88818219,103.3,103.28,1.25967975]
[1770123182503,2.88818219,103.3,103.27,9.68318705]
[1770123182504,10.98813574,103.33,103.29,10.94101888]
[1770123182698,2.88818219,103.32,103.29,10.94101888]
[1770123182900,4.19803844,103.32,103.29,10.94101888]
[1770123184320,2.88818219,103.31,103.29,10.94101888]
[1770123184521,2.88818219,103.3,103.28,10.94160021]
[1770123185324,4.19803844,103.3,103.27,10.94256043]
[1770123185513,2.88818219,103.29,103.27,10.94256043]
[1770123188620,2.88818219,103.3,103.28,1.25967975]
[1770123190615,2.88818219,103.3,103.28,10.94208598]
[1770123193331,2.88818219,103.29,103.27,10.9424869]
[1770123195123,2.88818219,103.28,103.27,10.9424869]
[1770123195431,2.88818219,103.28,103.26,9.68390984]
[1770123195818,8.6373481,103.3,103.26,10.94358959]
[1770123196018,2.88818219,103.28,103.26,10.94358959]
[1770123196409,2.8865987,103.28,103.26,10.94358959]
[1770123196605,2.8865987,103.28,103.25,9.68479607]
[1770123196808,2.8865987,103.26,103.24,9.68570377]
[1770123198843,2.8865987,103.27,103.25,1.25967975]
[1770123201512,4.22946699,103.26,103.24,11.0884722]
[1770123201718,2.8865987,103.27,103.25,11.08799845]
[1770123202432,2.8865987,103.27,103.24,11.08855203]
[1770123202433,2.8865987,103.26,103.24,11.08855203]
[1770123202724,4.22946699,103.27,103.25,1.40276843]
[1770123203636,2.8865987,103.26,103.24,1.40276843]
[1770123203822,2.8865987,103.25,103.23,29.91721239]
[1770123204016,2.8865987,103.25,103.23,28.30276843]
[1770123204441,2.8865987,103.25,103.23,37.98981929]
[1770123204644,4.22946699,103.26,103.24,9.68616815]
[1770123204858,2.8865987,103.26,103.25,1.40276843]
[1770123205437,2.8865987,103.26,103.24,11.08893658]
[1770123205640,4.22946699,103.27,103.24,11.08893658]
[1770123206037,2.8865987,103.26,103.24,11.08893658]
[1770123206836,4.22946699,103.27,103.24,11.08893658]
[1770123209284,4.22946699,103.27,103.25,1.40276843]
[1770123211328,1.34286829,103.27,103.25,1.40276843]
[1770123211532,4.22946699,103.27,103.25,11.08798605]
[1770123213246,11.02538413,103.28,103.25,11.08798605]
[1770123213448,2.8865987,103.27,103.25,11.08798605]
[1770123215349,4.22946699,103.28,103.25,11.08798605]
[1770123215542,9.68178748,103.29,103.26,1.40276843]
[1770123215543,1.34286829,103.29,103.26,1.40276843]
[1770123215846,4.22946699,103.3,103.26,1.40276843]
[1770123216529,4.22946699,103.3,103.27,11.08612274]
[1770123218243,1.34286829,103.28,103.26,9.68382395]
[1770123218427,1.34286829,103.28,103.26,11.08659238]
[1770123219038,4.22946699,103.28,103.26,11.08659238]
[1770123219643,1.34286829,103.26,103.24,37.98838345]
[1770123219948,4.22946699,103.27,103.24,37.98838345]
[1770123220758,9.68156178,103.29,103.24,9.68561502]
[1770123220759,4.22946699,103.26,103.24,9.68561502]
[1770123221952,4.22946699,103.26,103.24,1.40276843]
[1770123222352,4.22946699,103.25,103.23,1.40276843]
[1770123222744,2.8865987,103.25,103.23,1.40276843]
[1770123223958,4.22946699,103.27,103.23,1.40276843]
[1770123224141,4.22946699,103.27,103.24,9.68616815]
[1770123224342,1.34286829,103.26,103.24,9.68616815]
[1770123224654,1.34286829,103.26,103.24,11.08893658]
[1770123225455,4.22946699,103.27,103.24,11.08893658]
[1770123225748,4.22946699,103.28,103.25,1.40276843]
[1770123226248,4.22946699,103.28,103.25,11.08757752]
[1770123226631,4.22946699,103.28,103.25,9.68480909]
[1770123226831,1.34286829,103.28,103.26,1.40276843]
[1770123228657,13.9114776,103.29,103.26,11.08693808]
[1770123229069,4.22946699,103.29,103.26,11.08693808]
[1770123229448,4.22946699,103.28,103.25,11.08746439]
[1770123229771,4.22946699,103.27,103.25,1.40276843]
[1770123229940,4.22946699,103.27,103.24,11.08836225]
[1770123231548,4.22946699,103.27,103.25,1.50387911]
[1770123232955,4.43515322,103.26,103.24,11.08546557]
[1770123233336,2.8865987,103.26,103.24,11.08546557]
[1770123233658,4.43515322,103.27,103.25,11.08510177]
[1770123233861,4.43515322,103.27,103.24,1.39987175]
[1770123235769,4.43515322,103.27,103.24,11.08541239]
[1770123237272,2.8865987,103.26,103.24,11.08541239]
[1770123237566,4.43515322,103.27,103.24,11.08541239]
[1770123237869,4.43515322,103.28,103.25,1.39987175]
[1770123238770,2.8865987,103.28,103.25,1.39987175]
[1770123238967,14.1170959,103.29,103.25,1.39987175]
[1770123239165,4.43515322,103.28,103.25,11.08444929]
[1770123240579,4.43515322,103.27,103.25,1.39987175]
[1770123240772,4.43515322,103.27,103.24,35.30088922]
[1770123241078,4.43515322,103.27,103.25,1.39987175]
[1770123241781,4.43515322,103.26,103.24,1.39987175]
[1770123242356,1.54855452,103.25,103.22,1.39987175]
[1770123242577,2.8865987,103.23,103.21,11.08809806]
[1770123244683,14.12088922,103.25,103.22,1.39987175]
[1770123246075,1.54855452,103.25,103.23,1.39987175]
[1770123247062,4.43515322,103.27,103.23,1.39987175]
[1770123247264,1.54855452,103.26,103.23,1.39987175]
[1770123247462,16.25955052,103.3,103.24,1.39987175]
[1770123247662,4.43515322,103.29,103.26,11.08416382]
[1770123250282,1.54855452,103.31,103.27,1.39987175]
[1770123250476,1.54855452,103.29,103.27,1.39987175]
[1770123251377,4.43515322,103.3,103.27,1.39987175]
[1770123252285,4.43515322,103.3,103.27,11.08319683]
[1770123253479,14.1157573,103.3,103.27,11.08319683]
[1770123254682,4.43515322,103.31,103.28,1.39987175]
[1770123255067,4.43515322,103.32,103.28,1.39987175]
[1770123255283,4.43515322,103.3,103.27,11.08319683]
[1770123256383,4.43368575,103.3,103.27,11.08319683]
[1770123256984,1.54855452,103.3,103.27,11.08319683]
[1770123258569,1.54855452,103.29,103.27,9.68332508]
[1770123258967,1.54855452,103.27,103.22,1.39987175]
[1770123259168,4.43368575,103.26,103.22,1.39987175]
[1770123260384,4.43368575,103.26,103.23,1.53904901]
[1770123260582,14.11841148,103.26,103.23,1.53904901]
[1770123260885,2.88513123,103.25,103.23,1.53904901]
[1770123261482,14.11841148,103.26,103.23,1.53904901]
[1770123261661,2.88513123,103.26,103.24,1.53904901]
[1770123266267,35.40870974,103.3,103.25,1.53904901]
[1770123266474,2.88513123,103.28,103.25,1.53904901]
[1770123266796,4.40989765,103.29,103.25,1.53904901]
[1770123267388,14.09160152,103.29,103.25,11.22378785]
[1770123268286,9.68073303,103.3,103.26,1.53904901]
[1770123269187,14.0898587,103.31,103.26,1.53904901]
[1770123269495,2.88513123,103.31,103.28,1.53904901]
[1770123270384,12.56435731,103.32,103.28,1.53904901]
[1770123270699,2.88513123,103.32,103.28,1.53904901]
[1770123271482,2.88513123,103.31,103.28,11.22100602]
[1770123271698,2.88513123,103.31,103.29,1.53904901]
[1770123272013,4.40989765,103.31,103.28,11.22100602]
[1770123272392,2.88513123,103.3,103.28,11.22100602]
[1770123273998,4.40989765,103.31,103.28,11.22100602]
[1770123274391,4.40989765,103.3,103.27,11.22194543]
[1770123274593,4.40989765,103.29,103.26,11.22291539]
[1770123274798,2.88513123,103.29,103.27,1.53904901]
[1770123279404,14.0907281,103.3,103.27,1.53904901]
[1770123280208,2.88513123,103.29,103.27,1.53904901]
[1770123282514,1.52476642,103.33,103.29,1.53904901]
[1770123282817,4.40989765,103.33,103.28,2.88513123]
[1770123283724,14.08772919,103.33,103.29,9.68147933]
[1770123284714,14.08772919,103.33,103.29,11.22052834]
[1770123285014,1.52476642,103.31,103.28,9.68184915]
[1770123285197,4.40989765,103.31,103.28,11.22089816]
[1770123287915,4.40989765,103.3,103.28,11.22089816]
[1770123288317,2.88513123,103.3,103.28,11.22089816]
[1770123288908,4.40989765,103.31,103.28,11.22089816]
[1770123289093,14.08813414,103.33,103.29,1.53904901]
[1770123289713,1.52476642,103.32,103.29,1.53904901]
[1770123290312,14.28899,103.34,103.3,1.71221215]
[1770123290624,1.72691842,103.34,103.3,1.71221215]
[1770123290914,14.2884508,103.35,103.31,1.71221215]
[1770123291310,1.72691842,103.34,103.31,1.71221215]
[1770123292299,4.61204965,103.34,103.31,1.71221215]
[1770123292508,4.61204965,103.34,103.31,11.39116004]
[1770123293806,4.57755654,103.35,103.32,1.70786725]
[1770123294120,4.57755654,103.36,103.32,1.70786725]
[1770123294495,4.57755654,103.36,103.33,11.38559878]
[1770123295114,4.57755654,103.35,103.33,9.67773153]
[1770123295296,2.88513123,103.35,103.33,11.38559878]
[1770123295509,4.57755654,103.36,103.33,11.38559878]
[1770123297024,4.57755654,103.37,103.34,1.70786725]
[1770123297430,1.69242531,103.37,103.34,1.70786725]
[1770123297834,4.67755654,103.38,103.34,1.70786725]
[1770123298317,1.79242531,103.38,103.34,1.70786725]
[1770123298523,4.67755654,103.38,103.34,1.70786725]
[1770123299217,4.67755654,103.38,103.35,11.38372598]
[1770123300534,0.1,103.4,103.38,1.70786725]
[1770123300836,2.88513123,103.39,103.37,1.70786725]
[1770123301022,4.67755654,103.4,103.37,11.38127732]
[1770123302530,1.69242531,103.39,103.37,9.67341007]
[1770123302734,4.57755654,103.38,103.36,9.67447583]
[1770123302918,2.88513123,103.37,103.35,11.38329142]
[1770123303518,2.88513123,103.37,103.35,9.67542417]
[1770123303519,4.57755654,103.37,103.35,9.67542417]
[1770123304127,4.57755654,103.37,103.35,11.38329142]
[1770123304338,31.25527085,103.42,103.37,1.70786725]
[1770123304339,1e-08,103.42,103.37,1.70786725]
[1770123304514,1e-08,103.42,103.39,2.88513123]
[1770123304837,0.1,103.44,103.38,2.88513123]
[1770123305141,4.67755654,103.44,103.38,5.36086188]
[1770123305343,1e-08,103.44,103.39,111.22932583]
[1770123305641,1e-08,103.44,103.41,2.88513123]
[1770123306436,1e-08,103.44,103.42,1.70786725]
[1770123306735,1e-08,103.44,103.43,11.37624199]
[1770123308439,1e-08,103.44,103.42,11.37674034]
[1770123308819,1e-08,103.44,103.43,9.66837474]
[1770123309022,1e-08,103.44,103.42,11.37674257]
[1770123310741,4.57755655,103.44,103.41,11.3781119]
[1770123312124,4.57755655,103.44,103.42,1.70786725]
[1770123312125,2.88513124,103.44,103.42,1.70786725]
[1770123312347,1e-08,103.44,103.42,1.70786725]
[1770123312529,1e-08,103.44,103.43,1.70786725]
[1770123313040,1e-08,103.44,103.43,11.37624199]
[1770123316742,1e-08,103.44,103.42,11.37684187]
[1770123316935,1e-08,103.44,103.4,26.88]
[1770123316936,4.56854723,103.44,103.41,9.66951841]
[1770123317142,4.56854723,103.44,103.41,11.37738566]
[1770123317451,1e-08,103.44,103.43,14.2523639]
[1770123317637,1e-08,103.44,103.43,11.37624199]
[1770123317844,1e-08,103.44,103.43,9.66837474]
[1770123319526,1e-08,103.44,103.42,9.6688604]
[1770123322855,1e-08,103.44,103.41,33.58784616]
[1770123322856,1.76480571,103.43,103.41,9.67015625]
[1770123323142,1.76480571,103.43,103.4,11.60620011]
[1770123325540,1.76480571,103.42,103.4,9.6707154]
[1770123325739,1.76480571,103.41,103.39,11.60712066]
[1770123326449,1.76480571,103.4,103.38,9.67257647]
[1770123327035,1.76480571,103.39,103.37,9.67353563]
[1770123328448,7.70467803,103.4,103.37,9.67353563]
[1770123328654,9.46948374,103.4,103.37,11.60902034]
[1770123329166,9.46948374,103.41,103.38,1.93548471]
[1770123329958,1.76480571,103.41,103.38,1.93548471]
[1770123330657,1.76480571,103.41,103.38,9.64016274]
[1770123331668,1.76480571,103.43,103.4,1.93548471]
[1770123332041,1.76480571,103.43,103.39,9.64016274]
[1770123332949,1.76480571,103.43,103.4,9.64016274]
[1770123333149,1.76480572,103.44,103.4,7.70467803]
[1770123333366,1.76480572,103.44,103.4,9.64016274]
[1770123333555,1.76480571,103.43,103.4,19.31061991]
[1770123333756,1.76480571,103.43,103.41,7.70467803]
[1770123334267,1.76480571,103.43,103.4,19.31061991]
[1770123336463,1.76480571,103.43,103.41,17.37491992]
[1770123336957,1.76480571,103.43,103.41,7.70467803]
[1770123340380,1.76480571,103.43,103.41,2.87711904]
[1770123340678,1e-08,103.44,103.42,2.87711904]
[1770123342259,9.76672019,103.45,103.43,2.87711904]
[1770123342666,11.5315259,103.45,103.43,2.87711904]
[1770123347781,6.25586636,103.46,103.44,4.81260375]
[1770123347996,8.02067207,103.46,103.44,2.87711904]
[1770123348492,8.02067207,103.46,103.44,1.93548471]
[1770123348493,6.25586636,103.46,103.44,1.93548471]
[1770123348778,6.25586636,103.46,103.45,2.87711904]
[1770123348985,6.25586636,103.46,103.44,4.81260375]
[1770123349161,28.4345322,103.48,103.45,4.81260375]
[1770123349162,11.42904483,103.48,103.45,4.81260375]
[1770123349366,1.76480571,103.47,103.45,1.93548471]
[1770123349566,1.76480571,103.47,103.44,4.81260375]
[1770123349862,1.76480571,103.47,103.44,14.47994781]
[1770123349863,11.42958304,103.47,103.44,14.47994781]
[1770123350062,1.76480571,103.47,103.44,14.47994781]
[1770123350682,11.42944886,103.47,103.44,14.47994781]
[1770123351581,24.15739428,103.49,103.45,4.80912349]
[1770123351582,1.92380926,103.48,103.45,4.80912349]
[1770123352097,1.92380926,103.48,103.45,1.93200445]
[1770123353702,11.58762495,103.48,103.45,1.93200445]
[1770123355196,14.46474399,103.48,103.45,1.93200445]
[1770123355594,11.58762495,103.48,103.45,1.93200445]
[1770123355798,1.87109133,103.47,103.45,1.93200445]
[1770123356902,1.87109133,103.47,103.44,11.69092354]
[1770123358985,1.87109133,103.47,103.45,2.02357948]
[1770123360516,1.87109133,103.46,103.43,11.69153723]
[1770123360806,1.87109133,103.45,103.42,11.69250345]
[1770123360979,1.87109133,103.44,103.42,9.66892397]
[1770123361379,4.74821037,103.44,103.41,11.69332669]
[1770123361789,4.74821037,103.43,103.4,9.67077203]
[1770123361988,4.74821037,103.43,103.4,11.69435151]
[1770123362195,4.74821037,103.43,103.41,2.02357948]
[1770123363184,2.87711904,103.42,103.4,11.69435151]
[1770123363384,2.87711904,103.42,103.4,2.02357948]
[1770123363585,4.74821037,103.42,103.39,11.6953199]
[1770123366715,2.87711904,103.42,103.4,2.02357948]
[1770123368007,4.74821037,103.41,103.38,2.02357948]
[1770123368215,2.87711904,103.39,103.37,11.69726837]
[1770123378403,2.88022748,103.39,103.37,11.69726837]